{"text_format":"3","workbook":"xlsx","n_sheets":3,"sheets":["Foglio1","Foglio2","Foglio3"],"read":"whole","date_system":"1900"}

{"sheet":"Foglio1","index":0,"n_rows":67,"n_cols":9,"rows_kept":67,"merged":[[60,0,60,8],[61,1,61,2],[61,3,61,4],[61,5,61,6],[61,7,61,8]]}
["ALLEGATO A4 - SCHEDA BUDGET DI PROGETTO 2016"]
[]
["OBIETTIVO A)"]
["SPESE AMMISSIBILI","PREVENTIVO","CONSUNTIVO"]
["SPESE DI GESTIONE E COSTI TECNICO-ORGANIZZATIVI\n(nella misura massima del 30% del totale)",null,0]
["COSTI DI PRODUZIONE \n(Noleggi e acquisti materiale, ad esclusione dei costi ammortizzabili)",0,0]
["COMPENSI AL PERSONALE ARTISTICO E TECNICO OSPITE \n(per i giorni di effettiva permanenza in residenza e rimborso al soggetto delle spese effettivamente sostenute)",0,0]
["COSTI DI OSPITALITA’ PER IL PERSONALE ARTISTICO E TECNICO (per i giorni di effettiva permanenza in residenza)",0,0]
["PAGHE E ONERI DEL PERSONALE TECNICO, ARTISTICO E FORMATIVO (supporto e tutoraggio artistico a carico del titolare Della residenza a disposizione dell’artista o della formazione ospite)",0,0]
["PROMOZIONE E PUBBLICITÀ (nella misura massima del 10% del totale)",0,0]
["TOTALE",{"$f":"SUM(B5:B10)","v":0},{"$f":"SUM(C5:C10)","v":0}]
[]
["RISORSE A DISPOSIZIONE DEL PROGETTO","PREVENTIVO","CONSUNTIVO"]
["Contributi (specificare)",0,0]
["Sponsorizzazioni (specificare)",0,0]
["Risorse proprie destinate al progetto",0,0]
["Altre risorse (specificare)",0,0]
["TOTALE Cofinanziamento a parte del soggetto proponente",{"$f":"SUM(B14:B17)","v":0},{"$f":"SUM(C14:C17)","v":0}]
[]
["Contributo richiesto (fino ad un massimo del 80% del costo del progetto)",0,"//"]
[]
[]
["OBIETTIVO B)"]
["SPESE AMMISSIBILI","PREVENTIVO","CONSUNTIVO"]
["SPESE DI GESTIONE E COSTI TECNICO-ORGANIZZATIVI (nella misura massima del 30% del totale)",0,0]
["CACHET FORMAZIONI OSPITI PROGAMMATE\n(con compenso fisso o a percentuale sull’incasso netto)",0,0]
["SIAE",0,0]
["PROMOZIONE, PUBBLICITÀ e SPESE PER LA MESSA ON-LINE DELLE PROGRAMMAZIONI (nella misura massima del 30% del totale)",0,0]
["TOTALE",{"$f":"SUM(B25:B28)","v":0},{"$f":"SUM(C25:C28)","v":0}]
[]
["RISORSE A DISPOSIZIONE DEL PROGETTO","PREVENTIVO","CONSUNTIVO"]
["Incassi della programmazione",0,0]
["Contributi (specificare)",0,0]
["Sponsorizzazioni (specificare)",0,0]
["Risorse proprie destinate al progetto",0,0]
["Altre risorse (specificare)",0,0]
["TOTALE Cofinanziamento a parte del soggetto proponente",{"$f":"SUM(B32+B33+B34+B35+B36)","v":0},{"$f":"SUM(C32+C33+C34+C35+C36)","v":0}]
[]
["Contributo richiesto (fino ad un massimo del 80% del costo del progetto)",0,"//"]
[]
[]
["OBIETTIVO C)"]
["SPESE AMMISSIBILI","PREVENTIVO","CONSUNTIVO"]
["SPESE DI GESTIONE E COSTI TECNICO-ORGANIZZATIVI (nella misura massima del 30% del totale)",0,0]
["COMPENSI AGLI OPERATORI IMPIEGATI NELLA ATTIVITÀ DI FORMAZIONE ED EDUCAZIONE DEL PUBBLICO",0,0]
["SPESE DI VIAGGIO E SOGGIORNO DEI PARTECIPANTI AGLI INCONTRI INTERREGIONALI",0,0]
["PUBBLICITÀ (nella misura massima del 10% del totale)",0,0]
["TOTALE",{"$f":"SUM(B44:B47)","v":0},{"$f":"SUM(C44:C47)","v":0}]
[]
["RISORSE A DISPOSIZIONE DEL PROGETTO","PREVENTIVO","CONSUNTIVO"]
["Eventuali proventi dalle attività di formazione ed educazione",0,0]
["Contributi (specificare)",0,0]
["Sponsorizzazioni (specificare)",0,0]
["Risorse proprie destinate al progetto",0,0]
["Altre risorse (specificare)",0,0]
["TOTALE Cofinanziamento a parte del soggetto proponente",{"$f":"SUM(B51:B55)","v":0},{"$f":"SUM(C51:C55)","v":0}]
[]
["Contributo richiesto (fino ad un massimo del 80% del costo del progetto)",0,"//"]
[]
[]
["BUDGET COMPLESSIVO DEL PROGETTO - ANNO 2016"]
[null,"OBIETTIVO A ",null,"OBIETTIVO B",null,"OBIETTIVO C",null,"TOTALE"]
[null,"PREVENTIVO","CONSUNTIVO","PREVENTIVO","CONSUNTIVO","PREVENTIVO","CONSUNTIVO","PREVENTIVO","CONSUNTIVO"]
["SPESE AMMISSIBILI",{"$f":"B11","v":0},{"$f":"C11","v":0},{"$f":"B29","v":0},{"$f":"C29","v":0},{"$f":"B48","v":0},{"$f":"C48","v":0},{"$f":"B64+D64+F64","v":0},0]
["RISORSE A DISPOSIZIONE",{"$f":"B18","v":0},{"$f":"C18","v":0},{"$f":"B37","v":0},{"$f":"C37","v":0},{"$f":"B56","v":0},{"$f":"C56","v":0},0,0]
["DEFICIT",{"$f":"B65-B64","v":0},0,0,0,0,0,0,0]
["RICHIESTA DI CONTRIBUTO",{"$f":"B20","v":0},"//",{"$f":"B39","v":0},"//",{"$f":"B58","v":0},"//",{"$f":"B67+D67+F67","v":0},"//"]

{"sheet":"Foglio2","index":1,"n_rows":0,"n_cols":0,"rows_kept":0}

{"sheet":"Foglio3","index":2,"n_rows":0,"n_cols":0,"rows_kept":0}